[Event "Titled Tuesday Blitz October 11 Early 2022"]
[White "Csonka, Balazs"]
[Black "Ovchinnikov, Vsevolod"]
[WhiteFideId "742910"]
[BlackFideId "24176842"]
[WhiteElo "2760"]
[BlackElo "2583"]
[Result "1-0"]
[Round "05"]
[TimeControl "180+1"]
[Date "2022.10.12"]
[WhiteClock "0:00:03"]
[BlackClock "0:00:08"]

1. e4 {[%clk 0:03:00]}  g6 {[%clk 0:02:58]} 2. d4 {[%clk 0:02:55]}  Bg7 {[%clk 0:02:59]} 3. Nc3 {[%clk 0:02:55]}  a6 {[%clk 0:02:59]} 4. Be3 {[%clk 0:02:53]}  b5 {[%clk 0:02:59]} 5. Nf3 {[%clk 0:02:45]}  d6 {[%clk 0:02:58]} 6. Qd2 {[%clk 0:02:33]}  Nd7 {[%clk 0:02:54]} 7. h4 {[%clk 0:02:26]}  h5 {[%clk 0:02:54]} 8. Ng5 {[%clk 0:02:23]}  Bb7 {[%clk 0:02:52]} 9. f3 {[%clk 0:02:23]}  Rc8 {[%clk 0:02:48]} 10. a4 {[%clk 0:02:15]}  b4 {[%clk 0:02:48]} 11. Nd5 {[%clk 0:02:15]}  c5 {[%clk 0:02:41]} 12. dxc5 {[%clk 0:01:57]}  dxc5 {[%clk 0:02:40]} 13. O-O-O {[%clk 0:01:50]}  e6 {[%clk 0:01:27]} 14. Nf4 {[%clk 0:01:40]}  Qe7 {[%clk 0:01:24]} 15. Bc4 {[%clk 0:00:51]}  Ne5 {[%clk 0:01:15]} 16. Bxe6 {[%clk 0:00:26]}  fxe6 {[%clk 0:01:14]} 17. Ngxe6 {[%clk 0:00:22]}  Nc4 {[%clk 0:00:45]} 18. Qe2 {[%clk 0:00:13]}  Bxb2+ {[%clk 0:00:40]} 19. Kb1 {[%clk 0:00:14]}  Nxe3 {[%clk 0:00:41]} 20. Qxe3 {[%clk 0:00:10]}  Be5 {[%clk 0:00:25]} 21. Rd2 {[%clk 0:00:06]}  Qf6 {[%clk 0:00:07]} 22. Rhd1 {[%clk 0:00:05]}  Ne7 {[%clk 0:00:06]} 23. Nxc5 {[%clk 0:00:02]}  Bxf4 {[%clk 0:00:05]} 24. Qf2 {[%clk 0:00:02]}  Bxd2 {[%clk 0:00:05]} 25. Nxb7 {[%clk 0:00:02]}  Bc3 {[%clk 0:00:04]} 26. Nd6+ {[%clk 0:00:02]}  Kf8 {[%clk 0:00:05]} 27. Nxc8 {[%clk 0:00:02]}  Nxc8 {[%clk 0:00:06]} 28. Qc5+ {[%clk 0:00:02]}  Kg7 {[%clk 0:00:05]} 29. Rd7+ {[%clk 0:00:02]}  Kh6 {[%clk 0:00:05]} 30. Qe3+ {[%clk 0:00:03]}  g5 {[%clk 0:00:06]} 31. hxg5+ {[%clk 0:00:01]}  Qxg5 {[%clk 0:00:07]} 32. f4 {[%clk 0:00:02]}  Qg4 {[%clk 0:00:07]} 33. f5+ {[%clk 0:00:02]}  Qg5 {[%clk 0:00:08]} 34. Qc5 {[%clk 0:00:02]}  Rg8 {[%clk 0:00:05]} 35. Qc6+ {[%clk 0:00:02]}  Bf6 {[%clk 0:00:04]} 36. Qe6 {[%clk 0:00:01]}  Ne7 {[%clk 0:00:02]} 37. e5 {[%clk 0:00:02]}  Qxf5 {[%clk 0:00:02]} 38. Qxf6+ {[%clk 0:00:02]}  Qxf6 {[%clk 0:00:02]} 39. exf6 {[%clk 0:00:03]}  Ng6 {[%clk 0:00:03]} 40. Rd6 {[%clk 0:00:03]}  a5 {[%clk 0:00:03]} 41. Rd5 {[%clk 0:00:03]}  Rf8 {[%clk 0:00:04]} 42. Rxa5 {[%clk 0:00:03]}  Rxf6 {[%clk 0:00:05]} 43. Rb5 {[%clk 0:00:04]}  Rf4 {[%clk 0:00:05]} 44. a5 {[%clk 0:00:03]}  Ne7 {[%clk 0:00:04]} 45. a6 {[%clk 0:00:03]}  Rf6 {[%clk 0:00:05]} 46. Ra5 {[%clk 0:00:03]}  Nc8 {[%clk 0:00:04]} 47. a7 {[%clk 0:00:03]}  Nxa7 {[%clk 0:00:05]} 48. Rxa7 {[%clk 0:00:04]}  Rg6 {[%clk 0:00:05]} 49. Rb7 {[%clk 0:00:04]}  Rxg2 {[%clk 0:00:06]} 50. Rxb4 {[%clk 0:00:05]}  Kg5 {[%clk 0:00:06]} 51. Rb8 {[%clk 0:00:05]}  Kf4 {[%clk 0:00:06]} 52. Rh8 {[%clk 0:00:04]}  Kg4 {[%clk 0:00:06]} 53. c4 {[%clk 0:00:04]}  h4 {[%clk 0:00:05]} 54. c5 {[%clk 0:00:02]}  h3 {[%clk 0:00:05]} 55. c6 {[%clk 0:00:02]}  h2 {[%clk 0:00:05]} 56. c7 {[%clk 0:00:02]}  Rg1+ {[%clk 0:00:06]} 57. Kb2 {[%clk 0:00:02]}  h1=Q {[%clk 0:00:06]} 58. Rxh1 {[%clk 0:00:02]}  Rxh1 {[%clk 0:00:07]} 59. c8=Q+ {[%clk 0:00:03]}  Kg3 {[%clk 0:00:07]} 60. Qc3+ {[%clk 0:00:03]}  Kg2 {[%clk 0:00:07]} 61. Qe3 {[%clk 0:00:03]}  Rh3 {[%clk 0:00:07]} 62. Qf4 {[%clk 0:00:02]}  Rf3 {[%clk 0:00:07]} 63. Qe4 {[%clk 0:00:03]}  Kg3 {[%clk 0:00:07]} 64. Kc2 {[%clk 0:00:03]}  Rf4 {[%clk 0:00:06]} 65. Qe5 {[%clk 0:00:04]}  Kg4 {[%clk 0:00:06]} 66. Kd3 {[%clk 0:00:04]}  Rf5 {[%clk 0:00:06]} 67. Qe6 {[%clk 0:00:03]}  Kg5 {[%clk 0:00:07]} 68. Ke3 {[%clk 0:00:04]}  Rf8 {[%clk 0:00:06]} 69. Qe7+ {[%clk 0:00:04]}  Rf6 {[%clk 0:00:07]} 70. Qg7+ {[%clk 0:00:03]}  Kf5 {[%clk 0:00:05]} 71. Qh7+ {[%clk 0:00:02]}  Ke5 {[%clk 0:00:05]} 72. Qg7 {[%clk 0:00:02]}  Kf5 {[%clk 0:00:05]} 73. Qg8 {[%clk 0:00:02]}  Re6+ {[%clk 0:00:05]} 74. Kd4 {[%clk 0:00:03]}  Rf6 {[%clk 0:00:04]} 75. Kd5 {[%clk 0:00:03]}  Kf4 {[%clk 0:00:03]} 76. Qg2 {[%clk 0:00:03]}  Kf5 {[%clk 0:00:03]} 77. Qg3 {[%clk 0:00:02]}  Rg6 {[%clk 0:00:03]} 78. Qf3+ {[%clk 0:00:02]}  Kg5 {[%clk 0:00:04]} 79. Ke5 {[%clk 0:00:03]}  Kh6 {[%clk 0:00:04]} 80. Kf5 {[%clk 0:00:02]}  Rg5+ {[%clk 0:00:04]} 81. Kf6 {[%clk 0:00:02]}  Rg6+ {[%clk 0:00:05]} 82. Kf7 {[%clk 0:00:02]}  Rg7+ {[%clk 0:00:06]} 83. Kf8 {[%clk 0:00:02]}  Rg5 {[%clk 0:00:06]} 84. Qf4 {[%clk 0:00:02]}  Kh5 {[%clk 0:00:07]} 85. Kf7 {[%clk 0:00:02]}  Rg4 {[%clk 0:00:07]} 86. Qf3 {[%clk 0:00:02]}  Kh4 {[%clk 0:00:07]} 87. Kf6 {[%clk 0:00:02]}  Rg3 {[%clk 0:00:07]} 88. Qf2 {[%clk 0:00:02]}  Kh3 {[%clk 0:00:08]} 89. Kf5 {[%clk 0:00:02]}  Rg2 {[%clk 0:00:08]} 90. Qf1 {[%clk 0:00:02]}  Kh2 {[%clk 0:00:09]} 91. Kf4 {[%clk 0:00:02]}  Rg1 {[%clk 0:00:09]} 92. Qf2+ {[%clk 0:00:02]}  Rg2 {[%clk 0:00:09]} 93. Qh4+ {[%clk 0:00:02]}  Kg1 {[%clk 0:00:10]} 94. Kf3 {[%clk 0:00:03]}  Ra2 {[%clk 0:00:08]} 95. Qd4+ {[%clk 0:00:03]}  Kh1 {[%clk 0:00:08]} 96. Qh8+ {[%clk 0:00:03]}  Kg1 {[%clk 0:00:08]} 97. Qg8+ {[%clk 0:00:03]}  Rg2 {[%clk 0:00:08]} 98. Qxg2# {[%clk 0:00:03]} 1-0


[Site "https://www.chess.com"]

[Event "Titled Tuesday Blitz October 11 Early 2022"]
[White "Czernek, Tymon"]
[Black "Urazayev, Arystanbek"]
[WhiteFideId "1199510"]
[BlackFideId "13709810"]
[WhiteElo "2637"]
[BlackElo "2824"]
[Result "0-1"]
[Round "05"]
[TimeControl "180+1"]
[Date "2022.10.12"]
[WhiteClock "0:00:09"]
[BlackClock "0:00:08"]

1. e4 {[%clk 0:03:00]}  e5 {[%clk 0:03:00]} 2. Nf3 {[%clk 0:03:00]}  Nc6 {[%clk 0:03:00]} 3. Bc4 {[%clk 0:03:01]}  Bc5 {[%clk 0:03:00]} 4. O-O {[%clk 0:03:01]}  Nf6 {[%clk 0:03:00]} 5. d3 {[%clk 0:02:59]}  d6 {[%clk 0:03:00]} 6. c3 {[%clk 0:02:58]}  a5 {[%clk 0:02:59]} 7. Nbd2 {[%clk 0:02:55]}  O-O {[%clk 0:02:57]} 8. h3 {[%clk 0:02:55]}  h6 {[%clk 0:02:57]} 9. Re1 {[%clk 0:02:55]}  Be6 {[%clk 0:02:45]} 10. Bb3 {[%clk 0:02:52]}  Bxb3 {[%clk 0:02:43]} 11. Qxb3 {[%clk 0:02:49]}  a4 {[%clk 0:02:39]} 12. Qc2 {[%clk 0:02:47]}  Nh5 {[%clk 0:02:37]} 13. Nf1 {[%clk 0:02:46]}  Qf6 {[%clk 0:02:35]} 14. Be3 {[%clk 0:02:33]}  Nf4 {[%clk 0:02:36]} 15. Bxc5 {[%clk 0:02:28]}  dxc5 {[%clk 0:02:36]} 16. N3h2 {[%clk 0:02:22]}  Qg6 {[%clk 0:02:27]} 17. Ng3 {[%clk 0:02:22]}  Rfd8 {[%clk 0:02:18]} 18. Re3 {[%clk 0:02:18]}  Ne7 {[%clk 0:02:12]} 19. Nf3 {[%clk 0:02:14]}  Qf6 {[%clk 0:02:10]} 20. Rd1 {[%clk 0:01:56]}  Ra6 {[%clk 0:02:05]} 21. d4 {[%clk 0:01:34]}  cxd4 {[%clk 0:02:01]} 22. cxd4 {[%clk 0:01:35]}  exd4 {[%clk 0:02:00]} 23. e5 {[%clk 0:01:23]}  Qc6 {[%clk 0:01:58]} 24. Rc3 {[%clk 0:01:10]}  Qg6 {[%clk 0:01:33]} 25. Qxg6 {[%clk 0:01:01]}  Nexg6 {[%clk 0:01:32]} 26. Rxc7 {[%clk 0:01:01]}  Rb6 {[%clk 0:01:29]} 27. Rxd4 {[%clk 0:00:53]}  Rxd4 {[%clk 0:01:26]} 28. Nxd4 {[%clk 0:00:54]}  Rxb2 {[%clk 0:01:26]} 29. e6 {[%clk 0:00:51]}  Nxe6 {[%clk 0:01:16]} 30. Nxe6 {[%clk 0:00:50]}  fxe6 {[%clk 0:01:17]} 31. Nh5 {[%clk 0:00:49]}  Kh8 {[%clk 0:01:17]} 32. Rc8+ {[%clk 0:00:42]}  Kh7 {[%clk 0:01:16]} 33. Rc7 {[%clk 0:00:43]}  Ne5 {[%clk 0:00:34]} 34. Rxg7+ {[%clk 0:00:41]}  Kh8 {[%clk 0:00:34]} 35. Re7 {[%clk 0:00:31]}  Nc6 {[%clk 0:00:28]} 36. Rc7 {[%clk 0:00:29]}  Kg8 {[%clk 0:00:25]} 37. Nf6+ {[%clk 0:00:28]}  Kf8 {[%clk 0:00:25]} 38. a3 {[%clk 0:00:26]}  Rb3 {[%clk 0:00:23]} 39. Nd7+ {[%clk 0:00:20]}  Ke7 {[%clk 0:00:19]} 40. Nc5+ {[%clk 0:00:21]}  Kd6 {[%clk 0:00:20]} 41. Nxb3 {[%clk 0:00:15]}  Kxc7 {[%clk 0:00:20]} 42. Nc5 {[%clk 0:00:15]}  b5 {[%clk 0:00:20]} 43. Nxe6+ {[%clk 0:00:15]}  Kd6 {[%clk 0:00:21]} 44. Nf4 {[%clk 0:00:15]}  b4 {[%clk 0:00:21]} 45. Ne2 {[%clk 0:00:06]}  bxa3 {[%clk 0:00:20]} 46. Nc3 {[%clk 0:00:06]}  Nb4 {[%clk 0:00:19]} 47. Nb5+ {[%clk 0:00:06]}  Kc5 {[%clk 0:00:17]} 48. Nxa3 {[%clk 0:00:07]}  Kd4 {[%clk 0:00:17]} 49. f4 {[%clk 0:00:07]}  Kc3 {[%clk 0:00:12]} 50. f5 {[%clk 0:00:07]}  Nd5 {[%clk 0:00:08]} 51. Kf2 {[%clk 0:00:05]}  Kb3 {[%clk 0:00:08]} 52. Nb5 {[%clk 0:00:06]}  Kb4 {[%clk 0:00:09]} 53. Nd4 {[%clk 0:00:06]}  Kc4 {[%clk 0:00:09]} 54. Nc2 {[%clk 0:00:06]}  Kc3 {[%clk 0:00:09]} 55. Na3 {[%clk 0:00:07]}  Kb4 {[%clk 0:00:06]} 56. Nc2+ {[%clk 0:00:07]}  Kb3 {[%clk 0:00:07]} 57. Nd4+ {[%clk 0:00:07]}  Kb2 {[%clk 0:00:08]} 58. Nb5 {[%clk 0:00:08]}  Kb3 {[%clk 0:00:05]} 59. Nd4+ {[%clk 0:00:08]}  Kc4 {[%clk 0:00:05]} 60. Nc2 {[%clk 0:00:08]}  Nf6 {[%clk 0:00:06]} 61. Na3+ {[%clk 0:00:08]}  Kb3 {[%clk 0:00:06]} 62. Nb5 {[%clk 0:00:08]}  Kb4 {[%clk 0:00:07]} 63. Nd4 {[%clk 0:00:09]}  Ne4+ {[%clk 0:00:08]} 64. Ke3 {[%clk 0:00:09]}  Nd6 {[%clk 0:00:08]} 65. Kf4 {[%clk 0:00:09]}  Kc4 {[%clk 0:00:07]} 66. Nc2 {[%clk 0:00:09]}  Kc3 {[%clk 0:00:08]} 67. Na3 {[%clk 0:00:09]}  Kb3 {[%clk 0:00:08]} 68. Nb1 {[%clk 0:00:09]}  Kb2 {[%clk 0:00:09]} 69. Nd2 {[%clk 0:00:09]}  a3 {[%clk 0:00:09]} 70. Ke5 {[%clk 0:00:10]}  a2 {[%clk 0:00:09]} 71. Kxd6 {[%clk 0:00:10]}  a1=Q {[%clk 0:00:10]} 72. Ne4 {[%clk 0:00:11]}  Qa6+ {[%clk 0:00:09]} 73. Ke5 {[%clk 0:00:10]}  Qa5+ {[%clk 0:00:09]} 74. Ke6 {[%clk 0:00:11]}  Qb6+ {[%clk 0:00:08]} 75. Nd6 {[%clk 0:00:11]}  Qe3+ {[%clk 0:00:08]} 76. Kd7 {[%clk 0:00:11]}  Qg5 {[%clk 0:00:07]} 77. Ke6 {[%clk 0:00:10]}  Qxg2 {[%clk 0:00:06]} 78. f6 {[%clk 0:00:11]}  Qxh3+ {[%clk 0:00:07]} 79. Ke7 {[%clk 0:00:11]}  Qe3+ {[%clk 0:00:07]} 80. Kd7 {[%clk 0:00:11]}  Qf4 {[%clk 0:00:07]} 81. f7 {[%clk 0:00:11]}  h5 {[%clk 0:00:07]} 82. Ke7 {[%clk 0:00:11]}  Qe5+ {[%clk 0:00:07]} 83. Kd7 {[%clk 0:00:11]}  Qf6 {[%clk 0:00:08]} 84. Nc4+ {[%clk 0:00:08]}  Kc3 {[%clk 0:00:07]} 85. Ke8 {[%clk 0:00:08]}  Qxf7+ {[%clk 0:00:07]} 86. Kxf7 {[%clk 0:00:09]}  Kxc4 {[%clk 0:00:08]} 0-1


[Site "https://www.chess.com"]

[Event "Titled Tuesday Blitz October 11 Early 2022"]
[White "Dardha, Daniel"]
[Black "Hardaway, Brewington"]
[WhiteFideId "240990"]
[BlackFideId "30941849"]
[WhiteElo "2774"]
[BlackElo "2620"]
[Result "1-0"]
[Round "05"]
[TimeControl "180+1"]
[Date "2022.10.12"]
[WhiteClock "0:00:16"]
[BlackClock "0:00:02"]

1. e4 {[%clk 0:03:00]}  e5 {[%clk 0:02:54]} 2. Nf3 {[%clk 0:02:59]}  Nf6 {[%clk 0:02:49]} 3. d4 {[%clk 0:02:58]}  Nxe4 {[%clk 0:02:46]} 4. Bd3 {[%clk 0:02:58]}  d5 {[%clk 0:02:45]} 5. Nxe5 {[%clk 0:02:57]}  Bd6 {[%clk 0:02:45]} 6. O-O {[%clk 0:02:53]}  O-O {[%clk 0:02:45]} 7. Nc3 {[%clk 0:02:49]}  Nxc3 {[%clk 0:02:38]} 8. bxc3 {[%clk 0:02:50]}  Nd7 {[%clk 0:02:36]} 9. Nxd7 {[%clk 0:02:49]}  Qxd7 {[%clk 0:02:25]} 10. Qh5 {[%clk 0:02:47]}  h6 {[%clk 0:02:19]} 11. Re1 {[%clk 0:02:37]}  c6 {[%clk 0:02:07]} 12. Bd2 {[%clk 0:01:55]}  Qg4 {[%clk 0:02:04]} 13. Qxg4 {[%clk 0:01:54]}  Bxg4 {[%clk 0:02:05]} 14. c4 {[%clk 0:01:53]}  dxc4 {[%clk 0:02:02]} 15. Bxc4 {[%clk 0:01:54]}  Rfe8 {[%clk 0:02:02]} 16. Bb3 {[%clk 0:01:48]}  Kf8 {[%clk 0:01:47]} 17. h3 {[%clk 0:01:44]}  Bf5 {[%clk 0:01:47]} 18. a4 {[%clk 0:01:43]}  Rxe1+ {[%clk 0:01:45]} 19. Rxe1 {[%clk 0:01:44]}  Re8 {[%clk 0:01:45]} 20. Be3 {[%clk 0:01:37]}  Be6 {[%clk 0:01:38]} 21. Rb1 {[%clk 0:01:34]}  Bxb3 {[%clk 0:01:36]} 22. Rxb3 {[%clk 0:01:35]}  b6 {[%clk 0:01:36]} 23. Kf1 {[%clk 0:01:33]}  Ke7 {[%clk 0:01:36]} 24. Ke2 {[%clk 0:01:33]}  Kd7 {[%clk 0:01:36]} 25. Kd3 {[%clk 0:01:33]}  f5 {[%clk 0:01:35]} 26. c4 {[%clk 0:01:31]}  f4 {[%clk 0:01:32]} 27. Bd2 {[%clk 0:01:31]}  c5 {[%clk 0:01:28]} 28. a5 {[%clk 0:01:25]}  Bc7 {[%clk 0:01:19]} 29. dxc5 {[%clk 0:01:17]}  bxc5 {[%clk 0:01:18]} 30. Rb7 {[%clk 0:01:17]}  Kc8 {[%clk 0:00:54]} 31. Rxa7 {[%clk 0:01:15]}  Re6 {[%clk 0:00:55]} 32. a6 {[%clk 0:01:02]}  g5 {[%clk 0:00:49]} 33. Ra8+ {[%clk 0:01:00]}  Kd7 {[%clk 0:00:48]} 34. Bc3 {[%clk 0:00:53]}  h5 {[%clk 0:00:36]} 35. a7 {[%clk 0:00:46]}  Ra6 {[%clk 0:00:33]} 36. Rg8 {[%clk 0:00:47]}  Rxa7 {[%clk 0:00:31]} 37. Rxg5 {[%clk 0:00:46]}  Ra3 {[%clk 0:00:29]} 38. Rxc5 {[%clk 0:00:46]}  h4 {[%clk 0:00:29]} 39. Rb5 {[%clk 0:00:40]}  Kc6 {[%clk 0:00:28]} 40. Kc2 {[%clk 0:00:39]}  Bb6 {[%clk 0:00:28]} 41. f3 {[%clk 0:00:36]}  Ra2+ {[%clk 0:00:28]} 42. Rb2 {[%clk 0:00:36]}  Ra4 {[%clk 0:00:28]} 43. Kb3 {[%clk 0:00:34]}  Ra8 {[%clk 0:00:28]} 44. Re2 {[%clk 0:00:34]}  Be3 {[%clk 0:00:28]} 45. Bd2 {[%clk 0:00:29]}  Bd4 {[%clk 0:00:23]} 46. Bxf4 {[%clk 0:00:27]}  Ra1 {[%clk 0:00:19]} 47. Re6+ {[%clk 0:00:25]}  Kb7 {[%clk 0:00:15]} 48. Re4 {[%clk 0:00:25]}  Rb1+ {[%clk 0:00:14]} 49. Kc2 {[%clk 0:00:24]}  Rb2+ {[%clk 0:00:14]} 50. Kd3 {[%clk 0:00:24]}  Bg1 {[%clk 0:00:13]} 51. Re2 {[%clk 0:00:23]}  Rb3+ {[%clk 0:00:12]} 52. Ke4 {[%clk 0:00:23]}  Rb4 {[%clk 0:00:13]} 53. Kd5 {[%clk 0:00:23]}  Kb6 {[%clk 0:00:10]} 54. Re6+ {[%clk 0:00:20]}  Kb7 {[%clk 0:00:10]} 55. Re7+ {[%clk 0:00:20]}  Kb6 {[%clk 0:00:10]} 56. Be3+ {[%clk 0:00:14]}  Bxe3 {[%clk 0:00:10]} 57. Rxe3 {[%clk 0:00:14]}  Rb2 {[%clk 0:00:10]} 58. Re6+ {[%clk 0:00:14]}  Ka5 {[%clk 0:00:08]} 59. Rg6 {[%clk 0:00:15]}  Rd2+ {[%clk 0:00:08]} 60. Ke5 {[%clk 0:00:15]}  Kb4 {[%clk 0:00:07]} 61. Rg4 {[%clk 0:00:15]}  Kc5 {[%clk 0:00:07]} 62. Kf5 {[%clk 0:00:15]}  Kb4 {[%clk 0:00:04]} 63. Kg5 {[%clk 0:00:16]}  Kc5 {[%clk 0:00:04]} 64. Kxh4 {[%clk 0:00:16]}  Rd8 {[%clk 0:00:05]} 65. Kg3 {[%clk 0:00:16]}  Rh8 {[%clk 0:00:04]} 66. h4 {[%clk 0:00:16]}  Rh6 {[%clk 0:00:05]} 67. Rg5+ {[%clk 0:00:16]}  Kxc4 {[%clk 0:00:04]} 68. Kg4 {[%clk 0:00:17]}  Kd4 {[%clk 0:00:05]} 69. h5 {[%clk 0:00:17]}  Ke3 {[%clk 0:00:05]} 70. Rg6 {[%clk 0:00:17]}  Rh7 {[%clk 0:00:06]} 71. h6 {[%clk 0:00:17]}  Kf2 {[%clk 0:00:06]} 72. Kh5 {[%clk 0:00:17]}  Ke3 {[%clk 0:00:06]} 73. Rg7 {[%clk 0:00:17]}  Rh8 {[%clk 0:00:06]} 74. h7 {[%clk 0:00:17]}  Ra8 {[%clk 0:00:06]} 75. Kh6 {[%clk 0:00:18]}  Kf4 {[%clk 0:00:05]} 76. Rg8 {[%clk 0:00:18]}  Ra6+ {[%clk 0:00:05]} 77. Rg6 {[%clk 0:00:18]}  Ra8 {[%clk 0:00:06]} 78. Rf6+ {[%clk 0:00:16]}  Ke5 {[%clk 0:00:02]} 79. Kg7 {[%clk 0:00:16]} 1-0


[Site "https://www.chess.com"]

[Event "Titled Tuesday Blitz October 11 Early 2022"]
[White "Demin, Vladimir"]
[Black "Bychkov, Vladimir"]
[WhiteFideId "4167457"]
[BlackFideId "24151513"]
[WhiteElo "2565"]
[BlackElo "2197"]
[Result "1-0"]
[Round "05"]
[TimeControl "180+1"]
[Date "2022.10.12"]
[WhiteClock "0:00:03"]
[BlackClock "0:00:10"]

1. d4 {[%clk 0:02:56]}  Nf6 {[%clk 0:02:59]} 2. Nc3 {[%clk 0:02:54]}  d5 {[%clk 0:02:59]} 3. Bf4 {[%clk 0:02:51]}  e6 {[%clk 0:02:59]} 4. e3 {[%clk 0:02:52]}  a6 {[%clk 0:02:59]} 5. g4 {[%clk 0:02:51]}  h6 {[%clk 0:02:58]} 6. f3 {[%clk 0:02:45]}  c5 {[%clk 0:02:58]} 7. Nge2 {[%clk 0:02:41]}  Bd6 {[%clk 0:02:58]} 8. Bg2 {[%clk 0:02:40]}  Qc7 {[%clk 0:02:58]} 9. O-O {[%clk 0:02:40]}  Nbd7 {[%clk 0:02:54]} 10. h3 {[%clk 0:02:36]}  b5 {[%clk 0:02:53]} 11. Kh1 {[%clk 0:02:34]}  b4 {[%clk 0:02:54]} 12. Na4 {[%clk 0:02:31]}  c4 {[%clk 0:02:54]} 13. Bxd6 {[%clk 0:02:23]}  Qxd6 {[%clk 0:02:54]} 14. e4 {[%clk 0:02:24]}  Qc6 {[%clk 0:02:53]} 15. c3 {[%clk 0:02:22]}  dxe4 {[%clk 0:02:43]} 16. fxe4 {[%clk 0:02:21]}  Nxe4 {[%clk 0:02:40]} 17. Rf4 {[%clk 0:02:17]}  Ndf6 {[%clk 0:02:34]} 18. Nc5 {[%clk 0:02:14]}  Bb7 {[%clk 0:02:08]} 19. Nxe4 {[%clk 0:02:10]}  Ke7 {[%clk 0:02:03]} 20. Qf1 {[%clk 0:02:05]}  Rhf8 {[%clk 0:01:51]} 21. Rxf6 {[%clk 0:01:33]}  gxf6 {[%clk 0:01:50]} 22. Qxf6+ {[%clk 0:01:34]}  Ke8 {[%clk 0:01:45]} 23. Qe5 {[%clk 0:01:33]}  Kd8 {[%clk 0:01:39]} 24. Qf6+ {[%clk 0:01:18]}  Kc7 {[%clk 0:01:39]} 25. Qe7+ {[%clk 0:01:16]}  Kb6 {[%clk 0:01:38]} 26. d5 {[%clk 0:01:05]}  exd5 {[%clk 0:01:33]} 27. Nd4 {[%clk 0:01:03]}  Qc7 {[%clk 0:01:24]} 28. Qxb4+ {[%clk 0:00:59]}  Ka7 {[%clk 0:01:24]} 29. Nc5 {[%clk 0:00:44]}  Rfe8 {[%clk 0:01:21]} 30. Rf1 {[%clk 0:00:41]}  Rab8 {[%clk 0:01:19]} 31. Qa3 {[%clk 0:00:34]}  Qb6 {[%clk 0:01:11]} 32. h4 {[%clk 0:00:15]}  Re3 {[%clk 0:01:05]} 33. Rxf7 {[%clk 0:00:12]}  Re1+ {[%clk 0:01:04]} 34. Kh2 {[%clk 0:00:12]}  Qd6+ {[%clk 0:01:03]} 35. Kh3 {[%clk 0:00:12]}  Re3+ {[%clk 0:01:03]} 36. Bf3 {[%clk 0:00:12]}  Ka8 {[%clk 0:00:56]} 37. Nb5 {[%clk 0:00:10]}  Rxf3+ {[%clk 0:00:51]} 38. Rxf3 {[%clk 0:00:10]}  Qb6 {[%clk 0:00:47]} 39. Nd4 {[%clk 0:00:08]}  Bc8 {[%clk 0:00:45]} 40. Rf7 {[%clk 0:00:06]}  Qg6 {[%clk 0:00:43]} 41. Rf4 {[%clk 0:00:05]}  Qb1 {[%clk 0:00:43]} 42. Nxa6 {[%clk 0:00:05]}  Qh1+ {[%clk 0:00:42]} 43. Kg3 {[%clk 0:00:05]}  Qg1+ {[%clk 0:00:42]} 44. Kf3 {[%clk 0:00:05]}  Bxg4+ {[%clk 0:00:39]} 45. Rxg4 {[%clk 0:00:03]}  Qd1+ {[%clk 0:00:37]} 46. Kf4 {[%clk 0:00:03]}  Qf1+ {[%clk 0:00:37]} 47. Ke5 {[%clk 0:00:03]}  Re8+ {[%clk 0:00:37]} 48. Kd6 {[%clk 0:00:03]}  Qf6+ {[%clk 0:00:36]} 49. Kc5 {[%clk 0:00:03]}  Qe7+ {[%clk 0:00:32]} 50. Kb5 {[%clk 0:00:03]}  Qb7+ {[%clk 0:00:31]} 51. Ka5 {[%clk 0:00:03]}  Rc8 {[%clk 0:00:20]} 52. Nb5 {[%clk 0:00:03]}  h5 {[%clk 0:00:16]} 53. Rg6 {[%clk 0:00:03]}  d4 {[%clk 0:00:15]} 54. cxd4 {[%clk 0:00:01]}  c3 {[%clk 0:00:15]} 55. bxc3 {[%clk 0:00:02]}  Rd8 {[%clk 0:00:11]} 56. Nac7+ {[%clk 0:00:02]}  Kb8 {[%clk 0:00:10]} 57. Rb6 {[%clk 0:00:01]}  Qxb6+ {[%clk 0:00:08]} 58. Kxb6 {[%clk 0:00:02]}  Rd6+ {[%clk 0:00:09]} 59. Kc5 {[%clk 0:00:03]}  Rc6+ {[%clk 0:00:10]} 60. Kxc6 {[%clk 0:00:03]}  Kc8 {[%clk 0:00:10]} 61. Qa8# {[%clk 0:00:03]} 1-0


[Site "https://www.chess.com"]